[Event "*** MasterClass Titled Tuesday Blitz"]
[Site "Chess.com"]
[Date "2017.10.03"]
[Round "3"]
[White "amaidel"]
[Black "MyleneFarmer"]
[Result "1-0"]
[WhiteElo "2463"]
[BlackElo "2422"]
[TimeControl "180+2"]
[EndTime "13:36:28 PDT"]
[Termination "amaidel won by resignation"]

1. e4 {[%clk 0:03:01.9]} 1... c5 {[%clk 0:02:57.9]} 2. Nf3 {[%clk 0:02:58.1]}
2... d6 {[%clk 0:02:58.7]} 3. d4 {[%clk 0:02:58.4]} 3... cxd4 {[%clk 0:03:00.5]}
4. Nxd4 {[%clk 0:02:58.5]} 4... Nf6 {[%clk 0:03:01.9]} 5. Nc3 {[%clk 0:02:59.7]}
5... g6 {[%clk 0:03:03.4]} 6. Be2 {[%clk 0:02:59.3]} 6... Bg7 {[%clk 0:03:04.3]}
7. O-O {[%clk 0:03:00.4]} 7... O-O {[%clk 0:03:05.7]} 8. Re1 {[%clk 0:03:01.5]}
8... Nc6 {[%clk 0:03:06.7]} 9. Nb3 {[%clk 0:03:02.1]} 9... Be6 {[%clk
0:03:07.9]} 10. Bf1 {[%clk 0:03:02.9]} 10... d5 {[%clk 0:02:56.5]} 11. Nc5
{[%clk 0:03:03.4]} 11... d4 {[%clk 0:02:51.7]} 12. Nxe6 {[%clk 0:02:57.8]} 12...
fxe6 {[%clk 0:02:53.6]} 13. Nb1 {[%clk 0:02:58.7]} 13... e5 {[%clk 0:02:50]} 14.
Bc4+ {[%clk 0:02:58.6]} 14... Kh8 {[%clk 0:02:50.7]} 15. Nd2 {[%clk 0:02:59.4]}
15... Na5 {[%clk 0:02:48.2]} 16. Bd3 {[%clk 0:02:59]} 16... Rc8 {[%clk
0:02:48.7]} 17. Nf3 {[%clk 0:02:53.9]} 17... Nh5 {[%clk 0:02:41.4]} 18. b3
{[%clk 0:02:51.2]} 18... Nf4 {[%clk 0:02:33.2]} 19. Bxf4 {[%clk 0:02:41.9]}
19... Rxf4 {[%clk 0:02:33.7]} 20. Nd2 {[%clk 0:02:42.8]} 20... Rc3 {[%clk
0:02:32.3]} 21. Qe2 {[%clk 0:02:40.8]} 21... Nc6 {[%clk 0:02:27.9]} 22. a3
{[%clk 0:02:39.5]} 22... a6 {[%clk 0:02:01.1]} 23. g3 {[%clk 0:02:39.3]} 23...
Rf8 {[%clk 0:02:00.5]} 24. Kg2 {[%clk 0:02:40.2]} 24... Bh6 {[%clk 0:01:59.6]}
25. Nf3 {[%clk 0:02:32.5]} 25... Qd6 {[%clk 0:01:53.2]} 26. h4 {[%clk
0:02:32.8]} 26... Qf6 {[%clk 0:01:54]} 27. Rh1 {[%clk 0:02:32]} 27... Nd8 {[%clk
0:01:54]} 28. h5 {[%clk 0:02:32.2]} 28... g5 {[%clk 0:01:53]} 29. Nh2 {[%clk
0:02:32.5]} 29... Nf7 {[%clk 0:01:19.9]} 30. Ng4 {[%clk 0:02:32.8]} 30... Qc6
{[%clk 0:01:19]} 31. Bc4 {[%clk 0:02:28]} 31... b5 {[%clk 0:01:19.6]} 32. Bd5
{[%clk 0:02:26.1]} 32... Qd6 {[%clk 0:01:14]} 33. Bxf7 {[%clk 0:02:20]} 33...
Rxf7 {[%clk 0:01:14.8]} 34. Rad1 {[%clk 0:02:20.8]} 34... Bf8 {[%clk 0:01:03.7]}
35. Rd3 {[%clk 0:02:18.8]} 35... Rc5 {[%clk 0:00:53.9]} 36. b4 {[%clk
0:02:15.4]} 36... Rc4 {[%clk 0:00:53.3]} 37. h6 {[%clk 0:02:11.8]} 37... e6
{[%clk 0:00:51]} 38. Rf3 {[%clk 0:01:54.5]} 38... Rxf3 {[%clk 0:00:42.9]} 39.
Qxf3 {[%clk 0:01:56.4]} 39... Qe7 {[%clk 0:00:36.8]} 40. Nxe5 {[%clk 0:01:40.1]}
40... Rxc2 {[%clk 0:00:37.3]} 41. Nf7+ {[%clk 0:01:32.8]} 41... Kg8 {[%clk
0:00:38.1]} 42. Rh5 {[%clk 0:01:34.3]} 42... Qxf7 {[%clk 0:00:37.5]} 43. Rxg5+
{[%clk 0:01:35.2]} 43... Qg6 {[%clk 0:00:38.9]} 44. Rxg6+ {[%clk 0:01:34.1]}
44... hxg6 {[%clk 0:00:40.7]} 45. h7+ {[%clk 0:01:27.8]} 45... Kxh7 {[%clk
0:00:39]} 46. Qxf8 {[%clk 0:01:28.6]} 46... d3 {[%clk 0:00:39.9]} 47. Qe7+
{[%clk 0:01:26.1]} 47... Kh6 {[%clk 0:00:40]} 48. Qxe6 {[%clk 0:01:23]} 48... d2
{[%clk 0:00:39.3]} 49. Qd5 {[%clk 0:01:24.1]} 49... Kg7 {[%clk 0:00:35.1]} 50.
e5 {[%clk 0:01:25.1]} 50... Kf8 {[%clk 0:00:35.5]} 51. Qd7 {[%clk 0:01:24.8]}
51... Kg8 {[%clk 0:00:36.1]} 52. e6 {[%clk 0:01:25.7]} 52... d1=Q {[%clk
0:00:34.6]} 53. Qxd1 {[%clk 0:01:26.1]} 53... Rxf2+ {[%clk 0:00:34.8]} 54. Kxf2
{[%clk 0:01:26.6]} 54... Kf8 {[%clk 0:00:35.4]} 55. Qd7 {[%clk 0:01:27.4]} 1-0

[Event "*** MasterClass Titled Tuesday Blitz"]
[Site "Chess.com"]
[Date "2017.10.03"]
[Round "3"]
[White "Morf1us"]
[Black "Angry_Serb"]
[Result "1/2-1/2"]
[WhiteElo "2425"]
[BlackElo "2396"]
[TimeControl "180+2"]
[EndTime "13:36:40 PDT"]
[Termination "Game drawn by agreement"]

1. e4 {[%clk 0:03:01.9]} 1... e5 {[%clk 0:02:58.1]} 2. Nf3 {[%clk 0:02:58.5]}
2... d6 {[%clk 0:02:57.4]} 3. d4 {[%clk 0:02:54.4]} 3... exd4 {[%clk 0:02:59.2]}
4. Nxd4 {[%clk 0:02:55.7]} 4... Nf6 {[%clk 0:03:00.4]} 5. Nc3 {[%clk 0:02:56.2]}
5... Be7 {[%clk 0:03:01.8]} 6. g3 {[%clk 0:02:57.4]} 6... Bg4 {[%clk 0:03:00.6]}
7. f3 {[%clk 0:02:53.8]} 7... Bd7 {[%clk 0:03:00.4]} 8. Bg2 {[%clk 0:02:55.3]}
8... Nc6 {[%clk 0:02:59.5]} 9. Be3 {[%clk 0:02:55.8]} 9... O-O {[%clk
0:02:59.7]} 10. Qd2 {[%clk 0:02:54.8]} 10... Nxd4 {[%clk 0:03:00.2]} 11. Bxd4
{[%clk 0:02:55.7]} 11... c5 {[%clk 0:03:00.8]} 12. Be3 {[%clk 0:02:55.1]} 12...
Bc6 {[%clk 0:03:01.9]} 13. Rd1 {[%clk 0:02:52.3]} 13... b5 {[%clk 0:03:01.3]}
14. O-O {[%clk 0:02:41.8]} 14... b4 {[%clk 0:03:02.3]} 15. Nd5 {[%clk
0:02:43.1]} 15... Nxd5 {[%clk 0:03:03.2]} 16. exd5 {[%clk 0:02:45]} 16... Bb5
{[%clk 0:03:02.5]} 17. Rfe1 {[%clk 0:02:46.2]} 17... Bf6 {[%clk 0:03:03.9]} 18.
c3 {[%clk 0:02:36.7]} 18... bxc3 {[%clk 0:03:01.1]} 19. bxc3 {[%clk 0:02:38.6]}
19... Qa5 {[%clk 0:03:02.4]} 20. Rc1 {[%clk 0:02:40.2]} 20... Bc4 {[%clk
0:03:03]} 21. Rc2 {[%clk 0:02:31.6]} 21... Rfe8 {[%clk 0:02:55]} 22. Bf1 {[%clk
0:02:23]} 22... Qa6 {[%clk 0:02:50.5]} 23. Bf4 {[%clk 0:02:09.2]} 23... Bxf1
{[%clk 0:02:01.2]} 24. Rxf1 {[%clk 0:02:10.1]} 24... Qc4 {[%clk 0:01:58.2]} 25.
Rd1 {[%clk 0:01:49.8]} 25... Rad8 {[%clk 0:01:39.3]} 26. Qd3 {[%clk 0:01:48.3]}
26... Qxd3 {[%clk 0:01:11.2]} 27. Rxd3 {[%clk 0:01:48.5]} 27... c4 {[%clk
0:01:12.8]} 28. Re3 {[%clk 0:01:41.8]} 28... g5 {[%clk 0:00:45.3]} 29. Rxe8+
{[%clk 0:01:32.9]} 29... Rxe8 {[%clk 0:00:47.2]} 30. Bxd6 {[%clk 0:01:33.7]}
30... Rd8 {[%clk 0:00:48.5]} 31. Bc5 {[%clk 0:01:31.9]} 31... Rxd5 {[%clk
0:00:49.5]} 32. Bxa7 {[%clk 0:01:32.8]} 32... Rd3 {[%clk 0:00:51.2]} 33. Bd4
{[%clk 0:01:28.6]} 33... Bxd4+ {[%clk 0:00:32.2]} 34. cxd4 {[%clk 0:01:30.5]}
34... Rxd4 {[%clk 0:00:34.1]} 35. Kf2 {[%clk 0:01:31.5]} 35... Rd3 {[%clk
0:00:26.2]} 36. a4 {[%clk 0:01:20.4]} 36... c3 {[%clk 0:00:21.4]} 37. h4 {[%clk
0:00:28.3]} 37... gxh4 {[%clk 0:00:21.1]} 38. gxh4 {[%clk 0:00:30.2]} 38... Rd4
{[%clk 0:00:21.4]} 39. Kg3 {[%clk 0:00:28.8]} 39... Rxa4 {[%clk 0:00:20.6]} 40.
Rxc3 {[%clk 0:00:29.5]} 40... Kg7 {[%clk 0:00:21.9]} 41. Rc6 {[%clk 0:00:28.8]}
1/2-1/2

[Event "*** MasterClass Titled Tuesday Blitz"]
[Site "Chess.com"]
[Date "2017.10.03"]
[Round "3"]
[White "Abdodi"]
[Black "Superfelix"]
[Result "0-1"]
[WhiteElo "2155"]
[BlackElo "2286"]
[TimeControl "180+2"]
[EndTime "13:36:40 PDT"]
[Termination "Superfelix won by resignation"]

1. d4 {[%clk 0:03:01.9]} 1... g6 {[%clk 0:02:53.8]} 2. Nd2 {[%clk 0:02:50]} 2...
Bg7 {[%clk 0:02:54.4]} 3. Ngf3 {[%clk 0:02:49.3]} 3... d5 {[%clk 0:02:52.5]} 4.
c4 {[%clk 0:02:47]} 4... Nc6 {[%clk 0:02:52.1]} 5. e3 {[%clk 0:02:47.2]} 5...
Nf6 {[%clk 0:02:52.8]} 6. b3 {[%clk 0:02:47.6]} 6... O-O {[%clk 0:02:53.2]} 7.
Bb2 {[%clk 0:02:46.7]} 7... Re8 {[%clk 0:02:54.6]} 8. Be2 {[%clk 0:02:40.6]}
8... Bf5 {[%clk 0:02:55.3]} 9. cxd5 {[%clk 0:02:39]} 9... Nb4 {[%clk 0:02:54.3]}
10. O-O {[%clk 0:02:34.2]} 10... Nbxd5 {[%clk 0:02:49.3]} 11. a3 {[%clk
0:02:12.3]} 11... a5 {[%clk 0:02:44.9]} 12. Rc1 {[%clk 0:02:11.4]} 12... c6
{[%clk 0:02:45.7]} 13. Ne5 {[%clk 0:02:04.9]} 13... Ne4 {[%clk 0:02:45]} 14.
Nxe4 {[%clk 0:02:04.2]} 14... Bxe4 {[%clk 0:02:46.9]} 15. Nd3 {[%clk 0:01:49.4]}
15... Bxd3 {[%clk 0:02:45.4]} 16. Bxd3 {[%clk 0:01:50.1]} 16... e5 {[%clk
0:02:13.9]} 17. dxe5 {[%clk 0:01:48.7]} 17... Bxe5 {[%clk 0:02:12.3]} 18. Bxe5
{[%clk 0:01:40.3]} 18... Rxe5 {[%clk 0:02:14.2]} 19. Bc4 {[%clk 0:01:41.3]}
19... Qe7 {[%clk 0:02:12.4]} 20. Qf3 {[%clk 0:01:36.5]} 20... Rf8 {[%clk
0:01:46.7]} 21. a4 {[%clk 0:01:15]} 21... Kg7 {[%clk 0:01:45]} 22. Rfd1 {[%clk
0:01:08]} 22... Nf6 {[%clk 0:01:41.5]} 23. Rd4 {[%clk 0:00:59.9]} 23... Rd8
{[%clk 0:01:38.9]} 24. Rcd1 {[%clk 0:00:56.6]} 24... Rxd4 {[%clk 0:01:37.6]} 25.
Rxd4 {[%clk 0:00:58.1]} 25... Qc5 {[%clk 0:01:37.8]} 26. h3 {[%clk 0:00:51.2]}
26... h5 {[%clk 0:01:37.9]} 27. Rf4 {[%clk 0:00:48.9]} 27... Qd6 {[%clk
0:01:36.1]} 28. Rd4 {[%clk 0:00:48.2]} 28... Qc5 {[%clk 0:01:36.5]} 29. Rf4
{[%clk 0:00:48.6]} 29... Qe7 {[%clk 0:01:36.8]} 30. Qd1 {[%clk 0:00:45.4]} 30...
b5 {[%clk 0:01:32.8]} 31. axb5 {[%clk 0:00:42.3]} 31... cxb5 {[%clk 0:01:34.7]}
32. Bf1 {[%clk 0:00:43.1]} 32... Nd5 {[%clk 0:01:04.8]} 33. Rd4 {[%clk
0:00:41.6]} 33... Nb4 {[%clk 0:00:53.9]} 34. Rd6 {[%clk 0:00:30.6]} 34... a4
{[%clk 0:00:49.5]} 35. bxa4 {[%clk 0:00:30.8]} 35... bxa4 {[%clk 0:00:51.4]} 36.
Rd7 {[%clk 0:00:26]} 36... Qc5 {[%clk 0:00:43.4]} 37. Qd4 {[%clk 0:00:25.7]}
37... a3 {[%clk 0:00:31.7]} 38. Qxc5 {[%clk 0:00:21.3]} 38... Rxc5 {[%clk
0:00:33.6]} 39. Ra7 {[%clk 0:00:21.8]} 39... a2 {[%clk 0:00:34.3]} 0-1

[Event "*** MasterClass Titled Tuesday Blitz"]
[Site "Chess.com"]
[Date "2017.10.03"]
[Round "3"]
[White "XiaoKangZhong"]
[Black "BillCoe"]
[Result "1-0"]
[WhiteElo "1996"]
[BlackElo "1951"]
[TimeControl "180+2"]
[EndTime "13:36:44 PDT"]
[Termination "XiaoKangZhong won by resignation"]

1. e4 {[%clk 0:03:01.9]} 1... c5 {[%clk 0:03:00.1]} 2. Nf3 {[%clk 0:03:02.3]}
2... e6 {[%clk 0:03:01.2]} 3. c3 {[%clk 0:03:02.5]} 3... g6 {[%clk 0:02:57.4]}
4. d4 {[%clk 0:03:02.5]} 4... cxd4 {[%clk 0:02:54.6]} 5. cxd4 {[%clk 0:03:02.5]}
5... Bg7 {[%clk 0:02:54.6]} 6. Bd3 {[%clk 0:02:59.6]} 6... Ne7 {[%clk
0:02:54.8]} 7. O-O {[%clk 0:03:00.1]} 7... d6 {[%clk 0:02:55.5]} 8. Nc3 {[%clk
0:03:00.3]} 8... O-O {[%clk 0:02:56]} 9. Qe2 {[%clk 0:02:55.4]} 9... a6 {[%clk
0:02:56.8]} 10. Bf4 {[%clk 0:02:55.7]} 10... Nbc6 {[%clk 0:02:49.5]} 11. Rac1
{[%clk 0:02:51.6]} 11... e5 {[%clk 0:02:44.6]} 12. dxe5 {[%clk 0:02:49.5]} 12...
dxe5 {[%clk 0:02:46.5]} 13. Bd2 {[%clk 0:02:46.4]} 13... Bg4 {[%clk 0:02:42.3]}
14. Rfd1 {[%clk 0:02:02.3]} 14... Nd4 {[%clk 0:02:40.5]} 15. Qe3 {[%clk
0:02:02.7]} 15... Nxf3+ {[%clk 0:02:28.6]} 16. gxf3 {[%clk 0:02:03.4]} 16... Bh3
{[%clk 0:02:23.2]} 17. Ne2 {[%clk 0:02:04.1]} 17... Rc8 {[%clk 0:02:10]} 18. Bb4
{[%clk 0:01:59.1]} 18... Nc6 {[%clk 0:01:47.1]} 19. Bxf8 {[%clk 0:01:58]} 19...
Bxf8 {[%clk 0:01:41.4]} 20. Bxa6 {[%clk 0:01:42.5]} 20... Qh4 {[%clk 0:01:40.2]}
21. Bxb7 {[%clk 0:01:39]} 21... Bh6 {[%clk 0:01:39.8]} 22. Qb3 {[%clk 0:01:23]}
22... Bxc1 {[%clk 0:01:24.2]} 23. Bxc8 {[%clk 0:01:10]} 23... Bxc8 {[%clk
0:01:16.2]} 24. Rxc1 {[%clk 0:01:05.9]} 24... Qg5+ {[%clk 0:01:16.7]} 25. Kh1
{[%clk 0:01:06.1]} 25... Be6 {[%clk 0:01:06.5]} 26. Qe3 {[%clk 0:01:04.1]} 26...
Qxe3 {[%clk 0:00:50.6]} 27. fxe3 {[%clk 0:01:04.5]} 27... Nb4 {[%clk 0:00:51.6]}
28. a3 {[%clk 0:01:04.6]} 28... Nd3 {[%clk 0:00:51.9]} 29. Rc2 {[%clk
0:01:03.6]} 29... Ne1 {[%clk 0:00:50.1]} 30. Rc1 {[%clk 0:00:58]} 30... Nxf3
{[%clk 0:00:50.4]} 31. b4 {[%clk 0:00:58.8]} 31... Nd2 {[%clk 0:00:51.1]} 32. b5
{[%clk 0:00:57.5]} 32... Nxe4 {[%clk 0:00:51.1]} 33. b6 {[%clk 0:00:52.5]} 33...
Bd5 {[%clk 0:00:44.3]} 34. Rc8+ {[%clk 0:00:49.5]} 34... Kg7 {[%clk 0:00:44.2]}
35. Kg1 {[%clk 0:00:50.4]} 35... Kf6 {[%clk 0:00:35.1]} 36. Rc7 {[%clk
0:00:41.8]} 36... Ke6 {[%clk 0:00:28.9]} 37. b7 {[%clk 0:00:38.6]} 37... Bxb7
{[%clk 0:00:26.7]} 38. Rxb7 {[%clk 0:00:39.8]} 38... Nd2 {[%clk 0:00:24.9]} 39.
a4 {[%clk 0:00:39.7]} 39... h5 {[%clk 0:00:24.9]} 40. a5 {[%clk 0:00:39.6]}
40... Nc4 {[%clk 0:00:25.8]} 41. a6 {[%clk 0:00:39.9]} 41... Nxe3 {[%clk
0:00:20.6]} 42. a7 {[%clk 0:00:39.5]} 1-0

[Event "*** MasterClass Titled Tuesday Blitz"]
[Site "Chess.com"]
[Date "2017.10.03"]
[Round "3"]
[White "yurisolo"]
[Black "josiwales"]
[Result "0-1"]
[WhiteElo "2520"]
[BlackElo "2350"]
[TimeControl "180+2"]
[EndTime "13:36:46 PDT"]
[Termination "josiwales won by resignation"]

1. e4 {[%clk 0:02:57.7]} 1... c5 {[%clk 0:02:58.4]} 2. Nf3 {[%clk 0:02:58.6]}
2... Nc6 {[%clk 0:02:59.1]} 3. Bb5 {[%clk 0:02:55]} 3... g6 {[%clk 0:03:00.2]}
4. Bxc6 {[%clk 0:02:54.7]} 4... dxc6 {[%clk 0:02:59.8]} 5. d3 {[%clk 0:02:55]}
5... Bg7 {[%clk 0:03:00.8]} 6. h3 {[%clk 0:02:55.3]} 6... Nh6 {[%clk 0:02:57.6]}
7. Nc3 {[%clk 0:02:36.2]} 7... O-O {[%clk 0:02:58.4]} 8. Be3 {[%clk 0:02:30.7]}
8... f5 {[%clk 0:02:49.6]} 9. Bxc5 {[%clk 0:02:04.5]} 9... b6 {[%clk 0:02:47.4]}
10. Be3 {[%clk 0:01:57.5]} 10... f4 {[%clk 0:02:48.5]} 11. Bd2 {[%clk
0:01:53.7]} 11... c5 {[%clk 0:02:49.9]} 12. Qc1 {[%clk 0:01:37.5]} 12... e5
{[%clk 0:02:31.6]} 13. Nd5 {[%clk 0:01:38.1]} 13... Be6 {[%clk 0:02:32.1]} 14.
c4 {[%clk 0:01:35.3]} 14... g5 {[%clk 0:02:31.4]} 15. b4 {[%clk 0:01:21.5]}
15... Nf7 {[%clk 0:02:30.1]} 16. bxc5 {[%clk 0:01:18.2]} 16... bxc5 {[%clk
0:02:32]} 17. Qa3 {[%clk 0:01:19.2]} 17... Qd6 {[%clk 0:02:25.1]} 18. Rb1 {[%clk
0:01:19.1]} 18... Rfb8 {[%clk 0:02:19.9]} 19. O-O {[%clk 0:01:19.3]} 19... g4
{[%clk 0:02:16.3]} 20. hxg4 {[%clk 0:01:15.5]} 20... Bxg4 {[%clk 0:02:18.2]} 21.
Nh4 {[%clk 0:01:16.7]} 21... Ng5 {[%clk 0:02:11]} 22. f3 {[%clk 0:01:12.7]}
22... Qh6 {[%clk 0:01:37.5]} 23. Ne7+ {[%clk 0:00:36.4]} 23... Kh8 {[%clk
0:01:38.8]} 24. Nhf5 {[%clk 0:00:37.9]} 24... Bxf5 {[%clk 0:01:23.2]} 25. Rxb8+
{[%clk 0:00:36.1]} 25... Rxb8 {[%clk 0:01:20.2]} 26. Nxf5 {[%clk 0:00:38]} 26...
Qb6 {[%clk 0:01:17.8]} 27. Bc3 {[%clk 0:00:34.9]} 27... Bf6 {[%clk 0:01:14.4]}
28. Kh2 {[%clk 0:00:33.5]} 28... Rg8 {[%clk 0:01:10.2]} 29. Rf2 {[%clk
0:00:34.4]} 29... Qc7 {[%clk 0:00:45.1]} 30. Qb2 {[%clk 0:00:27]} 30... Ne6
{[%clk 0:00:27.8]} 31. Kg1 {[%clk 0:00:16.5]} 31... h5 {[%clk 0:00:23]} 32. Kf1
{[%clk 0:00:17.4]} 32... h4 {[%clk 0:00:23.5]} 33. Ke2 {[%clk 0:00:18.7]} 33...
Nd4+ {[%clk 0:00:18]} 34. Bxd4 {[%clk 0:00:19.1]} 34... exd4 {[%clk 0:00:18.7]}
35. Rf1 {[%clk 0:00:20.2]} 35... Rb8 {[%clk 0:00:19.1]} 36. Qc2 {[%clk
0:00:19.8]} 36... Rg8 {[%clk 0:00:20]} 37. Kf2 {[%clk 0:00:19.9]} 37... Qh7
{[%clk 0:00:18.5]} 38. Rh1 {[%clk 0:00:20.6]} 38... Qg6 {[%clk 0:00:19.5]} 39.
Qe2 {[%clk 0:00:19.6]} 39... Qxg2+ {[%clk 0:00:19.5]} 40. Ke1 {[%clk 0:00:20.8]}
40... Qxh1+ {[%clk 0:00:20.8]} 41. Qf1 {[%clk 0:00:22.3]} 41... Rg1 {[%clk
0:00:20.6]} 0-1

[Event "*** MasterClass Titled Tuesday Blitz"]
[Site "Chess.com"]
[Date "2017.10.03"]
[Round "3"]
[White "XeresLt"]
[Black "Aygehovit1992"]
[Result "0-1"]
[WhiteElo "2261"]
[BlackElo "2440"]
[TimeControl "180+2"]
[EndTime "13:36:46 PDT"]
[Termination "Aygehovit1992 won by resignation"]

1. e4 {[%clk 0:03:01.9]} 1... d6 {[%clk 0:02:48.7]} 2. d4 {[%clk 0:03:02]} 2...
Nf6 {[%clk 0:02:49.7]} 3. Nc3 {[%clk 0:03:02.2]} 3... g6 {[%clk 0:02:51]} 4. Be3
{[%clk 0:02:59.8]} 4... Bg7 {[%clk 0:02:52]} 5. h3 {[%clk 0:03:01]} 5... c6
{[%clk 0:02:53.1]} 6. a4 {[%clk 0:03:01.5]} 6... Nbd7 {[%clk 0:02:53.5]} 7. Bc4
{[%clk 0:02:59.9]} 7... Qc7 {[%clk 0:02:54.2]} 8. f3 {[%clk 0:02:56.5]} 8... O-O
{[%clk 0:02:53.6]} 9. g4 {[%clk 0:02:57]} 9... d5 {[%clk 0:02:53.9]} 10. Bf1
{[%clk 0:02:33.3]} 10... e5 {[%clk 0:02:36.5]} 11. exd5 {[%clk 0:02:28.5]} 11...
exd4 {[%clk 0:02:36.9]} 12. Bxd4 {[%clk 0:02:26.1]} 12... Re8+ {[%clk
0:02:24.7]} 13. Be2 {[%clk 0:02:19]} 13... Ne5 {[%clk 0:01:45.4]} 14. Kf1 {[%clk
0:01:56.9]} 14... b6 {[%clk 0:01:32.6]} 15. dxc6 {[%clk 0:01:53.5]} 15... Nxc6
{[%clk 0:01:27.9]} 16. Bf2 {[%clk 0:01:52.8]} 16... Be6 {[%clk 0:01:27.6]} 17.
Kg2 {[%clk 0:01:50.1]} 17... Rad8 {[%clk 0:01:28.5]} 18. Qc1 {[%clk 0:01:46.9]}
18... Nd5 {[%clk 0:01:30]} 19. Bg3 {[%clk 0:01:46.9]} 19... Qb7 {[%clk
0:01:30.4]} 20. Nxd5 {[%clk 0:01:45.6]} 20... Bxd5 {[%clk 0:01:31.7]} 21. Bb5
{[%clk 0:01:39.3]} 21... Nd4 {[%clk 0:01:28.7]} 22. Bxe8 {[%clk 0:01:39.2]}
22... Bxf3+ {[%clk 0:01:27.9]} 23. Kh2 {[%clk 0:01:14.7]} 23... Bxh1 {[%clk
0:01:27.7]} 24. Bxf7+ {[%clk 0:01:15.4]} 24... Kxf7 {[%clk 0:01:20.2]} 25. Qf1+
{[%clk 0:01:14.3]} 25... Kg8 {[%clk 0:01:19.1]} 26. Rd1 {[%clk 0:01:11.3]} 26...
Rf8 {[%clk 0:01:19.4]} 27. Qc4+ {[%clk 0:01:06.2]} 27... Kh8 {[%clk 0:01:20.4]}
28. Rd2 {[%clk 0:01:05.6]} 28... Bd5 {[%clk 0:01:14.2]} 29. Qb4 {[%clk
0:01:01.7]} 29... Nf3+ {[%clk 0:00:56.7]} 30. Nxf3 {[%clk 0:01:00.4]} 30... Bxf3
{[%clk 0:00:58.6]} 31. Rf2 {[%clk 0:00:52.7]} 31... h6 {[%clk 0:00:59.5]} 32.
Bd6 {[%clk 0:00:36.1]} 32... Rf7 {[%clk 0:00:47.1]} 33. a5 {[%clk 0:00:22.6]}
33... Qd7 {[%clk 0:00:42.7]} 34. axb6 {[%clk 0:00:20.4]} 34... axb6 {[%clk
0:00:43.9]} 35. Qxb6 {[%clk 0:00:21.4]} 35... Kh7 {[%clk 0:00:40.9]} 36. Bg3
{[%clk 0:00:22]} 36... Qd1 {[%clk 0:00:40.1]} 37. Bb8 {[%clk 0:00:12.5]} 37...
Qh1+ {[%clk 0:00:38]} 38. Kg3 {[%clk 0:00:14]} 38... Qg1+ {[%clk 0:00:38.7]} 39.
Kh4 {[%clk 0:00:15.4]} 39... Bf6+ {[%clk 0:00:35.2]} 0-1

[Event "*** MasterClass Titled Tuesday Blitz"]
[Site "Chess.com"]
[Date "2017.10.03"]
[Round "3"]
[White "Gabix_94"]
[Black "MaxLeto"]
[Result "1-0"]
[WhiteElo "2503"]
[BlackElo "2318"]
[TimeControl "180+2"]
[EndTime "13:37:00 PDT"]
[Termination "Gabix_94 won by resignation"]

1. e4 {[%clk 0:03:00.1]} 1... c5 {[%clk 0:02:47.5]} 2. Nf3 {[%clk 0:02:59.8]}
2... d6 {[%clk 0:02:48.6]} 3. d4 {[%clk 0:03:01.1]} 3... cxd4 {[%clk 0:02:50.5]}
4. Nxd4 {[%clk 0:03:03]} 4... a6 {[%clk 0:02:51.6]} 5. c4 {[%clk 0:03:03.5]}
5... Nf6 {[%clk 0:02:46.8]} 6. Nc3 {[%clk 0:03:04.6]} 6... b6 {[%clk 0:02:47.1]}
7. Bd3 {[%clk 0:03:00.7]} 7... Bb7 {[%clk 0:02:47.9]} 8. O-O {[%clk 0:03:01.5]}
8... Nbd7 {[%clk 0:02:49.5]} 9. Kh1 {[%clk 0:02:56.9]} 9... g6 {[%clk 0:02:51]}
10. Qe2 {[%clk 0:02:57.7]} 10... Bg7 {[%clk 0:02:52.6]} 11. f4 {[%clk 0:02:57]}
11... O-O {[%clk 0:02:53.1]} 12. Nf3 {[%clk 0:02:48.7]} 12... e6 {[%clk
0:02:38.7]} 13. Rb1 {[%clk 0:02:42.4]} 13... Nc5 {[%clk 0:02:33.5]} 14. Bc2
{[%clk 0:02:38.3]} 14... Nfd7 {[%clk 0:01:42.1]} 15. Bd2 {[%clk 0:02:37]} 15...
Nb8 {[%clk 0:01:31.4]} 16. b4 {[%clk 0:02:35.8]} 16... Ncd7 {[%clk 0:01:32.8]}
17. Rfd1 {[%clk 0:02:29]} 17... Nc6 {[%clk 0:01:31.1]} 18. Be1 {[%clk
0:02:25.4]} 18... Qc7 {[%clk 0:01:31]} 19. a3 {[%clk 0:02:23.6]} 19... Rfc8
{[%clk 0:01:18.5]} 20. Rbc1 {[%clk 0:02:22.6]} 20... Nf6 {[%clk 0:01:02.2]} 21.
Bb3 {[%clk 0:02:18.7]} 21... Ne8 {[%clk 0:00:23.1]} 22. Qe3 {[%clk 0:02:17.1]}
22... Rab8 {[%clk 0:00:21.6]} 23. Nd5 {[%clk 0:02:17.4]} 23... exd5 {[%clk
0:00:10.9]} 24. cxd5 {[%clk 0:02:19.2]} 24... Qd7 {[%clk 0:00:12]} 25. dxc6
{[%clk 0:02:18.3]} 25... Rxc6 {[%clk 0:00:13.8]} 26. Ng5 {[%clk 0:02:14.5]}
26... Rxc1 {[%clk 0:00:12.2]} 27. Rxc1 {[%clk 0:02:16.4]} 27... d5 {[%clk
0:00:10.7]} 28. Rd1 {[%clk 0:02:17.3]} 28... Nf6 {[%clk 0:00:06.6]} 29. e5
{[%clk 0:02:15.1]} 29... Ne8 {[%clk 0:00:03.8]} 30. Qxb6 {[%clk 0:02:15.4]}
30... Nc7 {[%clk 0:00:03.3]} 31. Qf2 {[%clk 0:02:11.4]} 31... Ne6 {[%clk
0:00:04.3]} 32. Ne4 {[%clk 0:02:11.3]} 32... Qc7 {[%clk 0:00:04.8]} 33. Nd6
{[%clk 0:02:12]} 33... d4 {[%clk 0:00:05.3]} 34. Nxb7 {[%clk 0:02:11.5]} 34...
Qxb7 {[%clk 0:00:07.2]} 35. Rc1 {[%clk 0:02:11.3]} 35... Qb6 {[%clk 0:00:08]}
36. Bd2 {[%clk 0:02:11.5]} 36... Bf8 {[%clk 0:00:09.4]} 37. Bd5 {[%clk
0:02:09.3]} 37... Rd8 {[%clk 0:00:10.6]} 38. Qf3 {[%clk 0:02:09.8]} 38... Ng7
{[%clk 0:00:11.8]} 39. g4 {[%clk 0:02:08.7]} 39... Qb5 {[%clk 0:00:12.9]} 40.
Bc4 {[%clk 0:02:09]} 40... Qa4 {[%clk 0:00:14]} 41. Qb3 {[%clk 0:02:09.8]} 41...
Qc6+ {[%clk 0:00:14.5]} 42. Kg1 {[%clk 0:02:10]} 42... Qe4 {[%clk 0:00:15.4]}
43. Bxf7+ {[%clk 0:02:09.8]} 43... Kh8 {[%clk 0:00:17]} 44. Re1 {[%clk
0:02:11.1]} 44... Qc6 {[%clk 0:00:17.1]} 45. Bc4 {[%clk 0:02:09.5]} 45... d3
{[%clk 0:00:17]} 46. Re3 {[%clk 0:01:57.5]} 46... h5 {[%clk 0:00:18.4]} 47. Rxd3
{[%clk 0:01:57.6]} 47... Rxd3 {[%clk 0:00:18.5]} 48. Qxd3 {[%clk 0:01:59.5]}
48... hxg4 {[%clk 0:00:19.6]} 49. Bd5 {[%clk 0:01:57.2]} 49... Qd7 {[%clk
0:00:18.5]} 50. Be4 {[%clk 0:01:55.4]} 50... Qa7+ {[%clk 0:00:19]} 51. Be3
{[%clk 0:01:56.4]} 51... Qc7 {[%clk 0:00:17.9]} 52. Bxg6 {[%clk 0:01:56.8]}
52... Be7 {[%clk 0:00:14.7]} 53. Be4 {[%clk 0:01:56.8]} 53... Ne6 {[%clk
0:00:14.5]} 54. Qe2 {[%clk 0:01:55.5]} 54... Qc3 {[%clk 0:00:11.3]} 55. Qd2
{[%clk 0:01:39.8]} 55... Qxa3 {[%clk 0:00:10.3]} 56. f5 {[%clk 0:01:37.9]} 56...
Qxb4 {[%clk 0:00:09.5]} 57. Qxb4 {[%clk 0:01:37]} 1-0